bitfinex/quotes_SOLUSD_20240808
["timestamp","ask_amount","ask_price","bid_price","bid_amount"]
[1723140315833,0.8149492,158.17,158.1,20.0]
[1723140319816,38.3275492,158.17,158.09,6.18]
[1723140320012,38.3275492,158.17,158.08,15.8614]
[1723140320013,45.0,158.16,158.04,6.1795]
[1723140320433,31.19,158.13,158.04,6.1795]
[1723140320630,45.0,158.12,158.04,6.1795]
[1723140322015,32.0049492,158.17,158.04,6.1795]
[1723140322422,38.3273492,158.17,158.05,20.0]
[1723140322641,32.0049492,158.17,158.05,20.0]
[1723140322811,6.3232,158.15,158.05,20.0]
[1723140323327,32.0049492,158.17,158.04,6.1795]
[1723140323534,6.3246,158.12,158.04,6.1795]
[1723140323723,51.3251,158.11,158.04,6.1795]
[1723140324048,45.0,158.11,158.04,6.1795]
[1723140324635,37.5155,158.09,157.98,6.4291]
[1723140324942,45.0,158.08,157.98,6.4291]
[1723140325627,51.3261,158.08,157.98,6.4291]
[1723140326620,6.3265,158.07,157.98,6.4291]
[1723140326813,51.3268,158.06,157.98,6.4291]
[1723140327344,45.0,158.06,157.98,6.4291]
[1723140331630,51.3267,158.06,157.98,6.4291]
[1723140332240,45.0,158.06,157.98,6.4291]
[1723140332418,51.3267,158.06,157.98,6.4291]
[1723140333120,6.61333073,158.07,157.98,6.4291]
[1723140333322,6.3251,158.1,157.98,6.4291]
[1723140333534,6.3251,158.1,157.99,20.0]
[1723140333747,6.61178087,158.11,157.98,6.4291]
[1723140333951,6.3259,158.08,157.98,6.4291]
[1723140334240,6.3255,158.09,157.98,6.4291]
[1723140334631,45.0,158.08,157.98,6.4291]
[1723140335644,51.3259,158.08,157.98,6.4291]
[1723140335852,45.0,158.08,157.98,6.4291]
[1723140336430,51.3259,158.08,157.98,6.4291]
[1723140336843,45.0,158.08,157.98,6.4291]
[1723140337919,6.3267,158.06,157.98,6.4291]
[1723140338118,45.0,158.05,157.98,6.4291]
[1723140338746,76.19,158.05,157.96,15.097]
[1723140339152,82.5172,158.05,157.96,15.097]
[1723140339456,76.19,158.05,157.96,15.097]
[1723140342450,82.5171,158.05,157.96,15.097]
[1723140343645,6.3275,158.04,157.96,15.097]
[1723140343852,24.26,157.98,157.94,6.0051]
[1723140344151,24.26,157.96,157.92,16.5668]
[1723140345851,6.3303,157.97,157.92,16.5668]
[1723140346046,31.22,157.99,157.9,21.7893]
[1723140346459,6.3304,157.97,157.9,21.7893]
[1723140346839,6.33,157.98,157.9,21.7893]
[1723140347331,37.5495,157.99,157.9,21.7893]
[1723140348053,6.6057609,158.04,157.9,21.7893]
[1723140348246,6.3279,158.03,157.91,21.26610029]
[1723140348431,6.6057609,158.04,157.92,1.26609927]
[1723140348633,6.6057609,158.04,157.93,23.92083485]
[1723140348850,31.22,158.06,157.93,22.6548]
[1723140348851,6.3289,158.01,157.93,22.6548]
[1723140349185,6.59905289,158.03,157.93,22.6548]
[1723140349341,12.92725289,158.03,157.93,22.6548]
[1723140349657,6.3283,158.02,157.93,22.6548]
[1723140350153,6.59905289,158.03,157.93,22.6548]
[1723140350354,45.0,158.02,157.93,22.6548]
[1723140350867,6.329,158.01,157.93,22.6548]
[1723140351036,45.0,158.0,157.93,22.6548]
[1723140352234,45.0,158.01,157.93,22.6548]
[1723140353831,6.3302,157.98,157.93,16.4703]
[1723140354133,6.3302,157.98,157.89,6.4313]
[1723140354134,31.22,157.94,157.89,22.9734]
[1723140354339,6.3323,157.92,157.89,22.9734]
[1723140354539,6.3332,157.9,157.85,6.4313]
[1723140354749,45.0,157.89,157.85,6.4313]
[1723140354939,31.22,157.91,157.85,6.4313]
[1723140356557,37.5529,157.91,157.85,6.4313]
[1723140356740,6.3335,157.89,157.85,6.4313]
[1723140356941,6.3331,157.9,157.85,6.4313]
[1723140358467,31.22,157.91,157.85,6.4313]
[1723140358661,6.3336,157.89,157.85,6.4313]
[1723140358866,31.22,157.87,157.79,6.0576]
[1723140359369,6.3356,157.84,157.79,6.0576]
[1723140359863,6.3351,157.85,157.79,6.0576]
[1723140360275,12.93960135,157.86,157.79,6.0576]
[1723140360771,6.3351,157.85,157.79,6.0576]
[1723140361264,6.3356,157.84,157.79,6.0576]
[1723140361471,6.3356,157.84,157.79,12.395]
[1723140362658,6.3362,157.83,157.79,6.0576]
[1723140363856,6.338,157.78,157.73,6.3395]
[1723140364169,6.3379,157.78,157.74,6.3393]
[1723140364392,6.3375,157.79,157.74,6.3393]
[1723140364566,6.3381,157.78,157.71,21.8419]
[1723140364963,30.0,157.76,157.71,21.8419]
[1723140365349,6.3391,157.75,157.71,21.8419]
[1723140366067,30.0,157.73,157.71,21.8419]
[1723140367175,36.3402,157.73,157.68,6.3416]
[1723140367964,30.0,157.73,157.67,21.6476]
[1723140368651,6.3411,157.71,157.66,6.3427]
[1723140368854,31.22,157.68,157.59,6.3923]
[1723140369054,6.3437,157.64,157.6,6.3451]
[1723140369250,6.3432,157.65,157.6,6.3451]
[1723140369450,6.3439,157.64,157.59,6.3455]
[1723140369780,6.3439,157.63,157.54,6.3923]
[1723140369955,6.346,157.58,157.54,6.3923]
[1723140370159,31.22,157.6,157.53,16.6337]
[1723140370672,6.3456,157.59,157.53,16.6337]
[1723140370859,31.22,157.6,157.53,16.6337]
[1723140371570,37.5653,157.6,157.54,6.3475]
[1723140371775,6.3457,157.59,157.54,6.3475]
[1723140371986,30.0,157.57,157.55,6.347]
[1723140372192,30.0,157.57,157.56,6.3467]
[1723140372487,44.1631892,157.64,157.58,6.3459]
[1723140372667,6.5993892,157.64,157.54,1.26919755]
[1723140372978,6.3424,157.67,157.61,6.3444]
[1723140373183,6.3424,157.67,157.55,1.26899455]
[1723140373184,6.59849999,157.66,157.65,6.343]
[1723140373358,31.22,157.72,157.65,6.343]
[1723140373676,31.22,157.72,157.56,6.2989]
[1723140373677,12.93957627,157.7,157.64,6.3435]
[1723140373878,31.22,157.68,157.56,6.2989]
[1723140374055,31.22,157.58,157.47,21.3136]
[1723140374477,6.3464,157.57,157.47,21.3136]
[1723140374676,15.8617,157.62,157.47,22.58316598]
[1723140374677,31.22,157.62,157.47,22.58316598]
[1723140374987,31.22,157.58,157.47,21.3136]
[1723140375174,6.3475,157.55,157.49,6.3492]
[1723140375374,31.22,157.58,157.48,6.3499]
[1723140375558,65.0,157.57,157.48,6.3499]
[1723140375881,65.0,157.57,157.47,21.3136]
[1723140376070,15.8677,157.56,157.47,21.3136]
[1723140376281,31.22,157.54,157.47,21.3136]
[1723140376459,6.3496,157.49,157.47,21.3136]
[1723140376783,31.22,157.54,157.47,21.3136]
[1723140376984,45.0,157.53,157.47,21.3136]
[1723140377189,45.0,157.55,157.47,21.3136]
[1723140377562,45.0,157.55,157.51,6.3486]
[1723140377772,45.0,157.55,157.47,21.3136]
[1723140378681,20.0,157.54,157.41,6.6579]
[1723140378957,20.0,157.54,157.32,31.22]
[1723140378958,31.22,157.51,157.33,24.09353905]
[1723140379181,31.22,157.51,157.33,22.9876]
[1723140379397,6.3504,157.47,157.33,22.9876]
[1723140379678,6.3504,157.47,157.4,6.3528]
[1723140379888,51.3504,157.47,157.41,6.3526]
[1723140380380,315.92258855,157.61,157.44,22.9876]
[1723140380582,50.46361669,157.61,157.44,22.9876]
[1723140380878,6.3484,157.52,157.47,6.3503]
[1723140381657,31.22,157.56,157.47,1.26988547]
[1723140382158,47.083,157.6,157.44,22.9876]
[1723140382159,6.3492,157.5,157.45,6.3508]
[1723140382357,62.9466,157.6,157.46,7.1656492]
[1723140382358,6.3488,157.51,157.46,7.1656492]
[1723140383274,45.0,157.5,157.46,7.1656492]
[1723140383584,6.3488,157.51,157.46,7.1656492]
[1723140383780,6.35,157.48,157.46,0.8149492]
[1723140383978,82.81900102,157.5,157.46,0.8149492]
[1723140384174,6.3504,157.47,157.46,0.8149492]
[1723140384369,51.3504,157.47,157.46,0.8149492]
[1723140385162,37.81900102,157.5,157.46,0.8149492]
[1723140385698,6.35,157.48,157.46,0.8149492]
[1723140386390,51.3504,157.47,157.46,0.8149492]
[1723140386577,37.81900102,157.5,157.46,0.8149492]
[1723140386782,45.0,157.49,157.46,0.8149492]
[1723140386984,51.3499,157.49,157.46,0.8149492]
[1723140387173,6.35,157.48,157.46,0.8149492]
[1723140388091,51.3496,157.49,157.46,0.8149492]
[1723140388277,37.5704,157.47,157.46,0.8149492]
[1723140388475,51.3504,157.47,157.46,0.8149492]
[1723140389866,45.0,157.47,157.46,0.8149492]
[1723140390065,51.3504,157.47,157.46,0.8149492]
[1723140392106,6.59900102,157.5,157.46,0.8149492]
[1723140392274,6.3496,157.49,157.46,0.8149492]
[1723140392790,6.3497,157.49,157.46,0.8149492]
[1723140393699,31.22,157.52,157.46,0.8149492]
[1723140393870,6.3504,157.47,157.46,0.8149492]
[1723140395006,51.3504,157.47,157.46,0.8149492]
[1723140396074,51.3504,157.47,157.3,0.8149492]
[1723140396075,6.3524,157.42,157.3,0.8149492]
[1723140397797,6.3524,157.42,157.3,20.8149492]
[1723140398101,107.9726,157.47,157.3,20.8149492]
[1723140398299,6.3533,157.4,157.3,20.8149492]
[1723140398807,6.3539,157.39,157.3,0.8149492]
[1723140399093,15.8799,157.44,157.3,0.8149492]
[1723140399094,6.3533,157.4,157.3,0.8149492]
[1723140399603,6.3537,157.39,157.3,0.8149492]
[1723140399799,6.3541,157.38,157.3,0.8149492]
[1723140400098,6.3537,157.39,157.3,0.8149492]
[1723140400278,6.3533,157.4,157.3,20.8149492]
[1723140401703,6.3536,157.39,157.3,20.8149492]
[1723140402003,6.354,157.38,157.3,20.8149492]
[1723140402222,6.3552,157.35,157.3,0.8149492]
[1723140402500,6.3557,157.34,157.3,0.8149492]
[1723140402675,47.1057,157.38,157.3,0.8149492]
[1723140402879,45.0,157.37,157.3,0.8149492]
[1723140403105,6.3568,157.31,157.3,0.8149492]
[1723140403577,6.3565,157.32,157.3,0.8149492]
[1723140404290,45.0,157.31,157.3,0.8149492]
[1723140404487,6.58465413,157.34,157.3,0.8149492]
[1723140405102,6.3555,157.35,157.3,0.8149492]
[1723140405310,45.0,157.34,157.3,0.8149492]
[1723140405607,6.3555,157.35,157.3,0.8149492]
[1723140406006,12.93774073,157.36,157.3,0.8149492]
[1723140406214,6.58294073,157.36,157.3,0.8149492]
[1723140406383,6.3536,157.39,157.3,0.8149492]
[1723140406718,6.58405282,157.4,157.3,2.08595469]
[1723140407009,12.93725282,157.4,157.3,2.08595469]
[1723140407182,31.22,157.44,157.32,6.4065]
[1723140407419,31.22,157.44,157.33,21.27069762]
[1723140407595,6.58544283,157.44,157.33,20.0]
[1723140407776,31.22,157.48,157.34,45.0]
[1723140407988,6.58599624,157.47,157.35,20.0]
[1723140408393,6.3512,157.45,157.36,1.27049008]
[1723140408595,6.58599624,157.47,157.36,1.27049008]
[1723140408809,31.22,157.52,157.36,46.27049008]
[1723140409015,6.3499,157.49,157.37,20.0]
[1723140409191,6.58522003,157.5,157.38,1.27020927]
[1723140409425,6.58522003,157.5,157.37,20.0]
[1723140410012,6.35,157.48,157.37,20.0]
[1723140410190,12.93472003,157.5,157.37,20.0]
[1723140410393,6.58522003,157.5,157.39,22.7729]
[1723140410588,37.5685,157.52,157.4,21.27000574]
[1723140411303,6.58412276,157.53,157.41,0.76998929]
[1723140411533,15.8648,157.59,157.41,45.0]
[1723140411686,15.8648,157.59,157.42,21.26964504]
[1723140412017,6.3478,157.54,157.42,20.0]
[1723140412183,6.3486,157.52,157.42,20.0]
[1723140412514,6.3478,157.54,157.43,1.26991605]
[1723140413010,6.348,157.53,157.42,20.0]
[1723140413191,6.3484,157.52,157.42,20.0]
[1723140413518,0.5,157.56,157.42,20.0]
[1723140413519,6.3491,157.51,157.42,20.0]
[1723140413685,6.3492,157.5,157.39,22.7729]
[1723140414724,45.0,157.49,157.39,22.7729]
[1723140415018,45.0,157.49,157.4,20.0]
[1723140416396,45.0,157.49,157.46,6.3508]
[1723140416716,45.0,157.49,157.4,20.0]
[1723140416717,45.0,157.49,157.47,6.3503]
[1723140416940,45.0,157.5,157.46,6.3507]
[1723140417119,45.0,157.5,157.47,6.3503]
[1723140417296,45.0,157.51,157.47,6.3503]
[1723140419312,31.22,157.49,157.39,22.7729]
[1723140419512,6.3516,157.44,157.39,29.1263]
[1723140419689,51.852,157.43,157.38,6.3539]
[1723140420493,45.5,157.43,157.39,6.3535]
[1723140422011,45.5,157.43,157.35,22.7091]
[1723140422216,6.3524,157.42,157.35,22.7091]
[1723140422416,45.5,157.41,157.35,22.7091]
[1723140422813,51.8531,157.41,157.35,22.7091]
[1723140423008,51.8531,157.41,157.3,0.8149492]
[1723140423009,45.5,157.41,157.31,22.7388]
[1723140423338,45.0,157.41,157.31,22.7388]
[1723140423624,45.0,157.42,157.39,6.3535]
[1723140423828,45.0,157.42,157.38,6.3539]
[1723140424053,51.8524,157.42,157.37,6.3544]
[1723140424206,51.3527,157.42,157.37,6.3541]
[1723140424408,51.8527,157.42,157.37,6.3541]
[1723140424641,51.8527,157.42,157.31,22.7388]
[1723140424804,51.8527,157.42,157.32,20.0]
[1723140425131,6.3532,157.4,157.31,22.7388]
[1723140425314,45.5,157.39,157.32,20.0]
[1723140425630,45.5,157.39,157.37,6.3544]
[1723140426130,45.0,157.39,157.31,22.7388]
[1723140426339,0.5,157.38,157.31,22.7388]
[1723140426535,6.355,157.36,157.31,29.0953]
[1723140426842,45.5,157.4,157.31,22.7388]
[1723140427004,45.0,157.4,157.31,22.7388]
[1723140427611,6.3537,157.39,157.34,6.3553]
[1723140427904,45.0,157.38,157.34,6.3553]
[1723140428330,45.0,157.38,157.32,1.27116414]
[1723140428709,45.0,157.38,157.33,1.27104156]
[1723140428935,45.0,157.38,157.31,22.7388]
[1723140428936,6.3528,157.41,157.36,6.3545]
[1723140429230,45.0,157.4,157.31,22.7388]
[1723140429403,45.0,157.41,157.31,22.7388]
[1723140429605,6.58822425,157.43,157.32,1.27084347]
[1723140429810,6.58822425,157.43,157.32,20.0]
[1723140430010,6.58822425,157.43,157.39,6.3532]
[1723140430214,6.58822425,157.43,157.31,22.7388]
[1723140430417,6.3532,157.4,157.35,6.3552]
[1723140430623,6.58822425,157.43,157.36,6.3547]
[1723140430810,6.3531,157.41,157.36,6.3547]
[1723140431011,45.0,157.4,157.31,22.7388]
[1723140431210,6.3539,157.39,157.31,22.7388]
[1723140431427,51.3532,157.4,157.35,6.3552]
[1723140431633,45.0,157.4,157.36,6.3547]
[1723140432036,51.3534,157.4,157.35,6.3551]
[1723140432338,6.354,157.38,157.33,6.3557]
[1723140432506,51.5606,157.4,157.34,6.3555]
[1723140432706,57.93655587,157.4,157.35,6.3549]
[1723140433015,6.3536,157.39,157.34,6.3556]
[1723140433226,57.93665587,157.4,157.35,6.3549]
[1723140433405,6.3548,157.37,157.32,6.3564]
[1723140433612,45.0,157.36,157.3,0.8149492]
[1723140433945,6.3543,157.38,157.33,6.3559]
[1723140434239,6.3539,157.39,157.3,0.8149492]
[1723140434407,51.58335587,157.4,157.37,6.354]
[1723140434615,51.58335587,157.4,157.37,6.3544]
[1723140434616,45.0,157.4,157.37,6.3544]
[1723140434822,45.0,157.41,157.37,6.3544]
[1723140435017,22.439,157.45,157.3,0.8149492]
[1723140435018,22.439,157.45,157.32,1.2708444]
[1723140435221,22.439,157.45,157.33,1.27070895]
[1723140435421,6.58207748,157.43,157.39,6.3535]
[1723140436034,12.93427748,157.43,157.38,6.354]
[1723140436830,6.58207748,157.43,157.35,22.9618]
[1723140437010,6.5944,157.49,157.36,21.27044208]
[1723140437216,6.3511,157.46,157.41,6.3527]
[1723140437958,6.57953799,157.48,157.36,20.0]
[1723140438123,6.3512,157.45,157.36,21.27045168]
[1723140438331,6.3509,157.46,157.41,6.3527]
[1723140438549,6.3509,157.46,157.42,6.3523]
[1723140438754,6.3513,157.45,157.36,20.0]
[1723140439234,6.57953799,157.48,157.36,20.0]
[1723140439235,6.3509,157.46,157.36,20.0]
[1723140439454,6.3509,157.46,157.41,6.3525]
[1723140439624,6.57953799,157.48,157.42,1.27030068]
[1723140439825,6.3495,157.5,157.45,6.3511]
[1723140440841,37.79812,157.52,157.39,21.5505]
[1723140440842,6.57812,157.52,157.39,21.5505]
[1723140441150,6.3484,157.52,157.4,65.0]
[1723140441323,6.3491,157.51,157.46,6.3507]
[1723140441525,6.3491,157.51,157.47,6.3503]
[1723140441726,6.3484,157.52,157.47,6.3503]
[1723140442233,6.3484,157.52,157.48,6.3499]
[1723140442535,6.3489,157.51,157.46,6.3507]
[1723140443022,6.3489,157.51,157.47,6.3503]
[1723140443450,0.5,157.51,157.46,6.3507]
[1723140443744,6.3496,157.49,157.4,20.0]
[1723140443957,37.6907,157.48,157.35,21.6831]
[1723140444252,37.6907,157.48,157.37,6.3543]
[1723140444253,6.3524,157.42,157.37,6.3543]
[1723140444635,6.3524,157.42,157.38,6.354]
[1723140444841,6.3521,157.43,157.38,6.354]
[1723140445424,0.5,157.42,157.35,21.6831]
[1723140445644,0.5,157.42,157.36,6.3548]
[1723140445645,6.3532,157.4,157.36,6.3548]
[1723140445852,0.5,157.39,157.31,6.1269]
[1723140446147,0.5,157.44,157.31,6.1269]
[1723140446328,45.5,157.44,157.31,6.1269]
[1723140446528,6.3531,157.41,157.35,6.355]
[1723140446744,51.3533,157.4,157.35,6.355]
[1723140447139,6.8538,157.39,157.33,6.3556]
[1723140447533,51.3541,157.38,157.33,6.3556]
[1723140447747,51.8544,157.37,157.32,6.3564]
[1723140447945,6.3548,157.36,157.32,6.3564]
[1723140448150,6.3541,157.38,157.33,6.356]
[1723140448326,51.3545,157.37,157.32,6.3564]
[1723140448846,0.5,157.36,157.3,0.8149492]
[1723140449034,6.3553,157.35,157.3,7.1721492]
[1723140449355,6.3561,157.33,157.3,0.8149492]
[1723140449527,45.5,157.32,157.3,0.8149492]
[1723140449926,6.3554,157.35,157.3,0.8149492]
[1723140450234,45.0,157.34,157.3,0.8149492]
[1723140450430,45.5,157.34,157.3,0.8149492]
[1723140450848,51.8556,157.34,157.3,0.8149492]
[1723140451229,76.72,157.34,157.3,0.8149492]
[1723140451552,6.3568,157.31,157.3,0.8149492]
[1723140451731,51.3568,157.31,157.3,0.8149492]
[1723140452867,71.3568,157.31,157.3,0.8149492]
[1723140453160,71.8568,157.31,157.3,0.8149492]
[1723140454163,71.3568,157.31,157.3,0.8149492]
[1723140456529,45.0,157.31,157.3,0.8149492]
[1723140456744,6.58735218,157.33,157.3,0.8149492]
[1723140456928,0.5,157.32,157.3,0.8149492]
[1723140457259,6.3587,157.37,157.3,0.8149492]
[1723140457433,0.5,157.35,157.3,0.8149492]
[1723140457633,6.356,157.33,157.3,0.8149492]
[1723140457836,6.856,157.33,157.3,0.8149492]
[1723140458038,0.5,157.33,157.3,0.8149492]
[1723140458239,29.89463375,157.43,157.3,0.8149492]
[1723140458442,6.352,157.43,157.3,2.08628968]
[1723140458649,6.3532,157.41,157.35,6.3552]
[1723140458965,6.58991497,157.42,157.3,0.8149492]
[1723140459565,6.3508,157.46,157.41,6.3528]
[1723140459732,6.3508,157.46,157.41,6.3526]
[1723140460150,12.94419994,157.47,157.41,6.3526]
[1723140460342,12.94419994,157.47,157.42,6.3523]
[1723140460754,6.59379994,157.47,157.43,6.352]
[1723140460947,47.0919,157.52,157.41,6.3524]
[1723140461147,6.6031224,157.47,157.41,6.3524]
[1723140461462,0.5,157.51,157.41,6.3524]
[1723140461762,6.60321584,157.48,157.41,6.3524]
[1723140461945,0.5,157.51,157.41,6.3524]
[1723140462134,6.3504,157.47,157.41,6.3524]
[1723140462936,6.60354425,157.48,157.36,6.2577]
[1723140463141,6.60354425,157.48,157.42,6.3523]
[1723140464069,20.0,157.47,157.38,6.3539]
[1723140464237,6.352,157.43,157.38,6.3539]
[1723140465465,6.3516,157.44,157.39,6.3536]
[1723140465665,45.0,157.43,157.39,6.3536]
[1723140466583,45.0,157.43,157.36,6.2577]
[1723140466584,0.5,157.42,157.37,6.354]
[1723140468668,45.0,157.43,157.39,6.3536]
[1723140468969,0.5,157.42,157.31,22.1792]
[1723140469271,20.5,157.42,157.31,22.1792]
[1723140469443,51.3528,157.41,157.35,6.3549]
[1723140469643,6.3528,157.41,157.35,6.3549]
[1723140469946,6.3528,157.41,157.36,6.3548]
[1723140469947,45.0,157.4,157.36,6.3548]
[1723140472654,45.0,157.4,157.37,6.3543]
[1723140472863,45.0,157.4,157.35,6.3551]
[1723140473048,51.62053562,157.4,157.35,6.3551]
[1723140473249,57.97383562,157.4,157.35,6.3551]
[1723140473451,51.62053562,157.4,157.36,6.3547]
[1723140474654,51.62053562,157.4,157.36,6.3548]
[1723140474868,57.97383562,157.4,157.35,6.3551]
[1723140475171,6.8537,157.39,157.34,6.3556]
[1723140475375,45.0,157.38,157.35,6.3552]
[1723140475557,51.62053562,157.4,157.35,6.3552]
[1723140476379,57.97373562,157.4,157.35,6.3552]
[1723140476780,0.5,157.39,157.31,22.1792]
[1723140476976,6.3548,157.36,157.31,28.5359]
[1723140477161,0.5,157.35,157.3,0.8149492]
[1723140477364,6.3557,157.34,157.3,0.8149492]
[1723140477676,45.5,157.33,157.3,7.1721492]
[1723140477980,0.5,157.33,157.31,6.3568]
[1723140478150,0.5,157.35,157.32,6.3564]
[1723140478356,45.5,157.35,157.31,6.3568]
[1723140478563,45.5,157.35,157.32,6.3564]
[1723140478986,45.5,157.35,157.31,6.3568]
[1723140479158,45.5,157.35,157.32,6.3564]
[1723140479857,45.5,157.35,157.31,6.3568]
[1723140481061,6.3556,157.34,157.3,0.8149492]
[1723140481381,45.5,157.33,157.3,0.8149492]
[1723140481690,6.8565,157.32,157.3,0.8149492]
[1723140481985,45.0,157.31,157.3,0.8149492]
[1723140483383,45.5,157.31,157.3,0.8149492]
[1723140484060,58.46906096,157.31,157.3,0.8149492]
[1723140484886,57.96906096,157.31,157.3,0.8149492]
[1723140485456,6.61226096,157.31,157.3,0.8149492]
[1723140485872,31.22,157.34,157.3,0.8149492]
[1723140486185,7.1121459,157.33,157.3,0.8149492]
[1723140486394,6.3568,157.31,157.3,0.8149492]
[1723140487261,51.3568,157.31,157.3,0.8149492]
[1723140487462,45.0,157.31,157.3,0.8149492]
[1723140488086,6.6121459,157.33,157.3,0.8149492]
[1723140488257,6.6121459,157.33,157.3,7.1721492]
[1723140488880,6.6121459,157.33,157.31,6.3567]
[1723140489081,6.6121459,157.33,157.3,0.8149492]
[1723140489785,12.9681459,157.33,157.3,0.8149492]
[1723140490694,45.0,157.32,157.3,0.8149492]
[1723140490900,6.6121459,157.33,157.32,6.3564]
[1723140491568,6.3504,157.47,157.42,6.3524]
[1723140491799,6.3508,157.46,157.41,6.3527]
[1723140491969,44.0879,157.5,157.32,22.2881]
[1723140492169,44.0879,157.5,157.34,1.27054598]
[1723140492698,6.3498,157.49,157.43,6.3517]
[1723140492872,6.3508,157.46,157.41,6.3528]
[1723140493077,6.3503,157.48,157.42,6.3523]
[1723140493670,37.5695,157.5,157.35,20.0]
[1723140493876,6.3497,157.49,157.36,21.27034757]
[1723140494085,31.22,157.5,157.33,65.0]
[1723140494277,31.22,157.5,157.42,6.3523]
[1723140494878,6.3504,157.47,157.42,6.3523]
[1723140495075,45.0,157.46,157.42,6.3523]
[1723140495395,45.0,157.46,157.43,6.352]
[1723140495594,45.0,157.47,157.43,6.352]
[1723140495977,51.3504,157.47,157.42,6.3523]
[1723140496882,31.22,157.44,157.32,6.5224]
[1723140497082,31.22,157.4,157.32,6.3563]
[1723140497393,6.3548,157.36,157.31,6.3568]
[1723140497598,0.5,157.35,157.31,6.3568]
[1723140497899,45.5,157.35,157.32,6.3563]
[1723140498492,45.5,157.35,157.3,0.8149492]
[1723140498798,45.0,157.35,157.3,0.8149492]
[1723140499097,45.0,157.35,157.32,6.3561]
[1723140499289,45.0,157.36,157.32,6.3561]
[1723140500485,45.0,157.36,157.3,0.8149492]
[1723140500486,0.5,157.35,157.33,6.356]
[1723140500667,45.0,157.36,157.3,0.8149492]
[1723140500872,45.0,157.37,157.3,0.8149492]
[1723140501285,45.0,157.37,157.33,6.3559]
[1723140502403,51.3545,157.37,157.32,6.3564]
[1723140502904,51.3545,157.37,157.33,6.356]
[1723140504508,51.3545,157.37,157.32,6.3564]
[1723140505088,0.5,157.36,157.32,6.3564]
[1723140505400,0.5,157.36,157.33,6.356]
[1723140505901,45.0,157.37,157.3,0.8149492]
[1723140506305,45.0,157.37,157.35,6.3552]
[1723140506603,51.3541,157.38,157.3,0.8149492]
[1723140506902,20.0,157.37,157.33,6.3557]
[1723140507106,45.0,157.36,157.33,6.3557]
[1723140509187,20.0,157.37,157.34,6.3555]
[1723140509388,45.0,157.36,157.33,6.3559]
[1723140509778,45.0,157.37,157.33,6.3559]
[1723140510220,45.0,157.37,157.34,6.3555]
[1723140510502,20.0,157.38,157.3,0.8149492]
[1723140510684,44.18378678,157.4,157.35,6.3552]
[1723140510894,45.0,157.39,157.35,6.3552]
[1723140511497,51.3537,157.39,157.35,6.3552]
[1723140511681,51.3537,157.39,157.34,6.3555]
[1723140512203,6.854,157.38,157.33,6.3559]
[1723140512703,6.3557,157.34,157.3,0.8149492]
[1723140512910,6.3567,157.32,157.3,0.8149492]
[1723140513096,6.8568,157.31,157.3,0.8149492]
[1723140513293,51.8568,157.31,157.3,0.8149492]
[1723140513494,71.8568,157.31,157.3,0.8149492]
[1723140513991,65.5,157.31,157.3,0.8149492]
[1723140515716,65.0,157.31,157.3,0.8149492]
[1723140516387,20.0,157.31,157.3,0.8149492]
[1723140516890,6.3561,157.33,157.3,0.8149492]
[1723140517212,65.0,157.32,157.3,0.8149492]
[1723140517713,45.0,157.32,157.3,0.8149492]
[1723140518126,6.3555,157.35,157.3,7.1721492]
[1723140518292,53.7489,157.4,157.3,0.8149492]
[1723140518489,37.2311,157.4,157.3,0.8149492]